bitfinex-derivatives/quotes_SOLF0:USTF0_20250318
["timestamp","ask_amount","ask_price","bid_price","bid_amount"]
[1742302008049,29.25390653,123.57,123.56,8.0938]
[1742302008651,0.05390653,123.57,123.56,8.0938]
[1742302009747,0.05390653,123.57,123.55,274.9942]
[1742302011153,8.14710653,123.57,123.55,274.9942]
[1742302011853,8.14710653,123.57,123.55,266.9]
[1742302013053,8.0938,123.56,123.55,266.9]
[1742302014066,37.28750653,123.57,123.55,266.9]
[1742302014362,37.28750653,123.57,123.55,274.9944]
[1742302015157,37.28750653,123.57,123.55,266.9]
[1742302015863,29.19390653,123.57,123.55,266.9]
[1742302016063,0.05390653,123.57,123.55,266.9]
[1742302016462,0.05390653,123.57,123.56,8.0938]
[1742302017962,37.2318,123.6,123.57,8.093]
[1742302018669,8.0919,123.59,123.57,8.093]
[1742302019263,8.14984449,123.59,123.57,8.14890346]
[1742302019669,0.05794449,123.59,123.58,8.0925]
[1742302020667,0.05794449,123.59,123.57,0.05590346]
[1742302021171,0.05794449,123.59,123.58,8.0925]
[1742302022672,0.05794449,123.59,123.57,8.14870346]
[1742302023069,0.05794449,123.59,123.57,0.05590346]
[1742302023473,0.05794449,123.59,123.58,8.0925]
[1742302028285,8.14984449,123.59,123.57,8.14870346]
[1742302028584,0.05794449,123.59,123.57,0.05590346]
[1742302028779,0.05794449,123.59,123.58,8.0925]
[1742302029783,29.12,123.64,123.61,8.0901]
[1742302029983,29.12,123.64,123.6,13.57958696]
[1742302030283,8.0893,123.63,123.61,8.0902]
[1742302030886,8.14244198,123.63,123.61,8.15191521]
[1742302032377,0.05314198,123.63,123.62,8.0899]
[1742302033984,152.35012928,123.66,123.64,8.0879]
[1742302034187,8.088,123.65,123.61,296.16]
[1742302034490,8.088,123.65,123.63,8.0889]
[1742302034787,37.2077,123.66,123.61,296.16]
[1742302034983,37.2077,123.66,123.64,8.0884]
[1742302035184,0.05134849,123.65,123.64,8.0884]
[1742302036185,0.05134849,123.65,123.63,8.0888]
[1742302036989,8.13934849,123.65,123.63,8.0888]
[1742302037684,8.0886,123.64,123.62,12.46933567]
[1742302038089,0.05134849,123.65,123.62,4.37983567]
[1742302038291,8.13954849,123.65,123.63,8.0891]
[1742302039190,8.0886,123.64,123.62,12.46923567]
[1742302039489,0.05134849,123.65,123.62,0.05973567]
[1742302039985,8.0892,123.63,123.62,0.05973567]
[1742302043088,37.2089,123.64,123.62,8.14963567]
[1742302044494,37.2089,123.64,123.62,0.05973567]
[1742302045196,8.0892,123.63,123.62,0.05973567]
[1742302048597,37.2089,123.64,123.62,0.05973567]
[1742302048798,29.15134849,123.65,123.62,8.14923567]
[1742302049193,8.0889,123.64,123.62,8.14923567]
[1742302052097,37.23954849,123.65,123.63,8.089]
[1742302052392,29.15134849,123.65,123.62,0.05973567]
[1742302052789,0.05134849,123.65,123.62,0.05973567]
[1742302053194,13.56862438,123.64,123.62,0.05973567]
[1742302053493,42.66862438,123.64,123.62,0.05973567]
[1742302054703,8.0892,123.63,123.62,0.05973567]
[1742302062197,37.189,123.64,123.62,0.05973567]
[1742302062393,29.1,123.64,123.62,0.05973567]
[1742302062893,0.05134849,123.65,123.62,0.05973567]
[1742302063698,8.0886,123.64,123.62,8.14923567]
[1742302064101,0.05134849,123.65,123.62,0.05973567]
[1742302066099,8.0892,123.63,123.62,0.05973567]
[1742302068114,8.0889,123.64,123.62,0.05973567]
[1742302068710,0.05134849,123.65,123.62,0.05973567]
[1742302068911,8.0886,123.64,123.62,0.05973567]
[1742302069710,0.05134849,123.65,123.62,0.05973567]
[1742302070910,8.0892,123.63,123.62,0.05973567]
[1742302072111,8.0899,123.62,123.61,267.04]
[1742302072415,50.75852438,123.62,123.61,267.04]
[1742302074210,8.0906,123.61,123.6,0.05164091]
[1742302077116,29.15737545,123.62,123.6,0.05164091]
[1742302077323,0.05737545,123.62,123.6,13.62026529]
[1742302077522,0.05737545,123.62,123.6,21.71116529]
[1742302077723,8.14767545,123.62,123.6,21.71116529]
[1742302077921,8.14767545,123.62,123.6,13.62026529]
[1742302078121,0.05737545,123.62,123.6,0.05164091]
[1742302079125,8.0906,123.61,123.6,0.05164091]
[1742302089533,37.24767545,123.62,123.6,0.05164091]
[1742302089838,8.14767545,123.62,123.6,0.05164091]
[1742302090336,0.05737545,123.62,123.6,0.05164091]
[1742302090534,0.05737545,123.62,123.61,13.56862438]
[1742302090938,8.14727545,123.62,123.6,21.71116529]
[1742302091332,8.14727545,123.62,123.6,8.14254091]
[1742302093631,8.14727545,123.62,123.6,275.14254091]
[1742302095545,8.0906,123.61,123.6,267.05164091]
[1742302100335,21.65922438,123.61,123.6,0.05164091]
[1742302100540,8.0929,123.58,123.56,267.0]
[1742302100740,8.0929,123.58,123.56,275.0935]
[1742302100944,8.0929,123.58,123.56,267.0]
[1742302101145,8.0929,123.58,123.56,275.0935]
[1742302101345,8.0929,123.58,123.56,267.0]
[1742302101545,8.15398801,123.58,123.56,267.05867241]
[1742302102047,8.0932,123.57,123.56,267.05867241]
[1742302102350,0.06108801,123.58,123.56,267.05867241]
[1742302102547,0.06108801,123.58,123.56,288.72059679]
[1742302105249,8.15368801,123.58,123.56,288.72059679]
[1742302109751,0.06108801,123.58,123.57,8.0932]
[1742302113754,0.06108801,123.58,123.57,10.1337]
[1742302114057,0.06108801,123.58,123.57,23.70232438]
[1742302118851,0.06108801,123.58,123.56,304.27217241]
[1742302119258,0.06108801,123.58,123.56,275.15217241]
[1742302119459,8.15358801,123.58,123.56,275.15217241]
[1742302122661,8.15358801,123.58,123.56,267.05867241]
[1742302123255,8.15358801,123.58,123.56,275.15207241]
[1742302125462,0.06108801,123.58,123.57,8.0932]
[1742302125956,0.06108801,123.58,123.57,21.66182438]
[1742302132859,0.06108801,123.58,123.57,288.72182438]
[1742302133863,11.24736758,123.63,123.6,8.0909]
[1742302134367,19.33696758,123.63,123.6,8.0909]
[1742302134563,52.99570372,123.63,123.61,8.0905]
[1742302135066,44.95957753,123.63,123.61,8.14778633]
[1742302135563,44.95957753,123.63,123.62,8.0899]
[1742302137069,0.05347381,123.63,123.62,8.0899]
[1742302145076,0.05347381,123.63,123.62,288.63852438]
[1742302145271,0.05347381,123.63,123.62,290.78612438]
[1742302146385,0.0018329,123.63,123.62,290.78612438]
[1742302148680,0.0018329,123.63,123.62,295.14522438]
[1742302153887,12.65496375,123.75,123.62,287.05532438]
[1742302154087,13.56862438,123.72,123.67,13.56862438]
[1742302154386,8.0837,123.72,123.7,8.0846]
[1742302154880,21.65162438,123.73,123.7,8.0846]
[1742302155077,0.05177241,123.72,123.71,8.084]
[1742302155284,0.05177241,123.72,123.7,0.05405594]
[1742302155585,8.13567241,123.72,123.7,0.05405594]
[1742302156889,8.084,123.71,123.7,0.05405594]
[1742302157186,42.64862438,123.71,123.68,266.92]
[1742302157384,8.0853,123.69,123.68,266.92]
[1742302157583,37.1653,123.69,123.68,266.92]
[1742302158179,8.0878,123.66,123.64,266.88]
[1742302158584,8.14670162,123.66,123.64,266.9354613]
[1742302158792,8.14670162,123.66,123.64,275.0239613]
[1742302159288,0.05890162,123.66,123.65,8.0879]
[1742302160388,8.14650162,123.66,123.64,275.0236613]
[1742302160987,8.0879,123.65,123.64,266.9354613]
[1742302161291,37.1679,123.65,123.64,266.9354613]
[1742302161987,50.73652438,123.65,123.64,0.0554613]
[1742302162193,8.0904,123.62,123.6,266.88]
[1742302162492,42.64862438,123.63,123.6,266.88]
[1742302162687,29.08,123.62,123.6,266.88]
[1742302163292,29.13475715,123.62,123.6,266.93709915]
[1742302163883,21.65922438,123.61,123.6,266.93709915]
[1742302164089,21.65922438,123.61,123.6,0.05709915]
[1742302165691,42.70338153,123.62,123.6,0.05709915]
[1742302165888,0.05475715,123.62,123.61,13.56862438]
[1742302166194,0.05475715,123.62,123.61,21.65922438]
[1742302167898,0.05475715,123.62,123.6,25.89662353]
[1742302168099,0.05475715,123.62,123.6,0.05709915]
[1742302168301,42.70338153,123.62,123.6,0.05709915]
[1742302168597,8.0906,123.61,123.6,0.05709915]
[1742302168801,42.70338153,123.62,123.6,0.05709915]
[1742302169299,29.13475715,123.62,123.6,0.05709915]
[1742302169699,29.13475715,123.62,123.61,8.0906]
[1742302170702,29.13475715,123.62,123.6,8.14799915]
[1742302171802,37.22475715,123.62,123.6,0.05709915]
[1742302172804,8.0906,123.61,123.6,0.05709915]
[1742302173195,21.65922438,123.61,123.6,0.05709915]
[1742302174903,21.66862438,123.61,123.53,282.57342438]
[1742302175108,13.56862438,123.58,123.53,282.57342438]
[1742302175407,29.1,123.57,123.55,8.0942]
[1742302176009,29.15487825,123.57,123.55,8.15060729]
[1742302176301,29.15487825,123.57,123.55,0.05640729]
[1742302176507,29.15487825,123.57,123.56,8.0938]
[1742302176706,29.15487825,123.57,123.55,0.05640729]
[1742302177207,37.24837825,123.57,123.55,0.05640729]
[1742302178503,29.15487825,123.57,123.55,8.15040729]
[1742302178803,0.05487825,123.57,123.55,0.05640729]
[1742302179309,0.05487825,123.57,123.56,21.66242438]
[1742302180602,8.0915,123.6,123.58,8.0925]
[1742302180803,37.1915,123.6,123.58,8.0925]
[1742302181511,29.1,123.6,123.58,8.0925]
[1742302181911,29.15317919,123.6,123.58,8.14734636]
[1742302182416,0.05317919,123.6,123.59,8.0919]
[1742302183614,0.05317919,123.6,123.58,275.16704636]
[1742302184004,0.05317919,123.6,123.58,267.07484636]
[1742302184210,8.14487919,123.6,123.58,267.07484636]
[1742302185015,8.14487919,123.6,123.58,275.16704636]
[1742302185815,8.14487919,123.6,123.58,267.07484636]
[1742302186317,8.14487919,123.6,123.58,275.16724636]
[1742302186506,0.05317919,123.6,123.58,275.16724636]
[1742302187117,0.05317919,123.6,123.59,8.0919]
[1742302189718,8.14447919,123.6,123.58,275.16694636]
[1742302190020,0.05317919,123.6,123.58,267.07484636]
[1742302190517,0.05317919,123.6,123.59,8.0919]
[1742302191625,8.14437919,123.6,123.58,275.16704636]
[1742302191824,0.05317919,123.6,123.58,267.07484636]
[1742302193525,8.14497919,123.6,123.58,267.07484636]
[1742302194725,8.0919,123.59,123.58,267.07484636]
[1742302195226,37.1919,123.59,123.58,267.07484636]
[1742302195621,29.1,123.59,123.58,267.07484636]
[1742302197530,29.1,123.59,123.58,275.16734636]
[1742302199930,0.05317919,123.6,123.58,275.16734636]
[1742302200127,8.14467919,123.6,123.58,275.16734636]
[1742302201631,0.05317919,123.6,123.59,8.0919]
[1742302202533,0.05317919,123.6,123.58,275.16694636]
[1742302203230,8.14467919,123.6,123.58,275.16694636]
[1742302203429,8.14467919,123.6,123.58,267.07484636]
[1742302204027,8.0919,123.59,123.58,267.07484636]
[1742302206233,8.14477919,123.6,123.58,275.16734636]
[1742302207432,8.14477919,123.6,123.58,267.07484636]
[1742302207433,8.0919,123.59,123.58,267.07484636]
[1742302208236,8.14477919,123.6,123.58,275.16734636]
[1742302208434,0.05317919,123.6,123.58,280.64347074]
[1742302208632,8.0901,123.62,123.6,8.0907]
[1742302208831,29.1,123.63,123.6,13.56862438]
[1742302209434,29.1,123.63,123.61,8.0899]
[1742302209626,0.05753244,123.63,123.6,13.62360351]
[1742302210026,0.05753244,123.63,123.61,8.0906]
[1742302210539,0.05753244,123.63,123.6,13.62360351]
[1742302211031,0.05753244,123.63,123.61,8.0906]
[1742302211237,0.05753244,123.63,123.6,13.62360351]
[1742302212128,0.05753244,123.63,123.62,21.65852438]
[1742302212436,29.1,123.65,123.62,13.56862438]
[1742302212835,29.1,123.65,123.64,8.0886]
[1742302213538,37.1879,123.65,123.63,8.14563821]
[1742302213739,13.62233667,123.66,123.63,0.05663821]
[1742302213934,42.72233667,123.66,123.63,0.05663821]
[1742302214240,8.0879,123.65,123.63,0.05663821]
[1742302214538,42.72233667,123.66,123.63,0.05663821]
[1742302214934,8.0886,123.64,123.63,0.05663821]
[1742302216038,8.0882,123.65,123.63,0.05663821]
[1742302216340,8.0882,123.65,123.63,8.14583821]
[1742302216734,8.0882,123.65,123.63,0.05663821]
[1742302217441,8.0886,123.64,123.63,0.05663821]
[1742302221743,37.1686,123.64,123.63,0.05663821]
[1742302224247,50.73722438,123.64,123.63,0.05663821]
[1742302224449,50.73722438,123.64,123.63,3.821e-05]
[1742302228150,8.0919,123.59,123.57,268.9713]
[1742302228552,8.0919,123.59,123.57,277.0644]
[1742302229249,8.0916,123.6,123.57,277.0644]
[1742302229441,0.05213836,123.59,123.58,8.0925]
[1742302231252,37.171,123.61,123.58,8.0925]
[1742302232246,37.23322532,123.61,123.58,8.0925]
[1742302232451,8.0912,123.6,123.58,8.0925]
[1742302232649,29.14222532,123.61,123.57,282.59844232]
[1742302232954,29.14222532,123.61,123.58,13.56862438]
[1742302233557,29.14222532,123.61,123.59,8.0914]
[1742302233948,37.23312532,123.61,123.59,8.0914]
[1742302234750,8.15312532,123.61,123.59,8.0914]
[1742302234954,8.0914,123.6,123.58,21.66082438]
[1742302235152,8.0914,123.6,123.58,8.0922]
[1742302235355,8.0914,123.6,123.57,311.67844232]
[1742302236055,8.0914,123.6,123.58,8.0925]
[1742302236753,8.0919,123.59,123.57,319.77134232]
[1742302236950,0.06222532,123.61,123.57,311.67844232]
[1742302237153,13.6308497,123.61,123.57,269.02981794]
[1742302237454,29.08,123.6,123.57,269.02981794]
[1742302237856,8.0925,123.58,123.57,267.01851794]
[1742302238057,50.74112438,123.58,123.57,267.01851794]
[1742302238569,37.1725,123.58,123.57,267.01851794]
[1742302240358,29.08,123.58,123.57,267.01851794]
[1742302241157,8.0921,123.59,123.57,267.01851794]
[1742302241860,8.0921,123.59,123.57,275.11171794]
[1742302242064,29.08,123.6,123.57,280.58714232]
[1742302242262,29.08,123.6,123.58,13.56862438]
[1742302242564,29.08,123.6,123.58,15.58062438]
[1742302243265,29.08,123.6,123.59,8.0919]
[1742302243461,29.08,123.6,123.58,15.58062438]
[1742302243763,29.08,123.6,123.58,2.012]
[1742302245566,29.08,123.6,123.58,15.58062438]
[1742302245755,29.08,123.6,123.58,2.012]
[1742302246657,37.1715,123.6,123.58,10.1043]
[1742302248270,8.0919,123.59,123.58,2.012]
[1742302249470,37.1715,123.6,123.58,10.1045]
[1742302249669,29.08,123.6,123.58,2.012]
[1742302250065,42.64862438,123.6,123.57,267.01851794]
[1742302250568,21.66112438,123.58,123.57,267.01851794]
[1742302250761,50.74112438,123.58,123.57,267.01851794]
[1742302250964,50.74112438,123.58,123.57,0.05851794]
[1742302251967,29.08,123.58,123.57,0.05851794]
[1742302252174,37.1722,123.59,123.57,0.05851794]
[1742302252474,8.0922,123.59,123.57,8.15141794]
[1742302254571,37.1716,123.6,123.58,8.0925]
[1742302255168,29.08,123.6,123.58,8.0925]
[1742302255374,37.23322532,123.61,123.57,15.70224232]
[1742302255574,37.23322532,123.61,123.58,267.04]
[1742302255874,37.23322532,123.61,123.59,8.0916]
[1742302256675,8.0912,123.6,123.58,275.1322]
[1742302257079,29.14222532,123.61,123.58,267.04]
[1742302257273,8.0919,123.59,123.58,267.04]
[1742302259775,37.1719,123.59,123.58,267.04]
[1742302259971,50.74052438,123.59,123.58,267.04]
[1742302260177,8.0925,123.58,123.57,0.05851794]
[1742302262770,21.66112438,123.58,123.57,0.05851794]
[1742302263574,21.66112438,123.58,123.57,1.794e-05]
[1742302283501,50.76112438,123.58,123.57,1.794e-05]
[1742302286103,8.0922,123.59,123.57,1.794e-05]
[1742302286399,37.1722,123.59,123.57,1.794e-05]
[1742302286602,8.0925,123.58,123.57,1.794e-05]
[1742302287691,21.66112438,123.58,123.57,1.794e-05]
[1742302288401,50.74112438,123.58,123.57,1.794e-05]
[1742302295305,8.0951,123.54,123.53,267.12]
[1742302296203,13.56862438,123.54,123.51,2.0911]
[1742302296406,29.08,123.53,123.52,0.05213118]
[1742302296907,37.1758,123.53,123.52,0.05213118]
[1742302297104,29.08,123.53,123.52,0.05213118]
[1742302297801,37.1758,123.53,123.52,0.05213118]
[1742302299007,29.08,123.53,123.52,0.05213118]
[1742302299209,29.14055042,123.55,123.52,0.05213118]
[1742302299908,8.0958,123.53,123.52,0.05213118]
[1742302303603,21.66442438,123.53,123.52,0.05213118]
[1742302308513,8.0978,123.5,123.49,267.1]
[1742302308712,50.74642438,123.5,123.49,267.1]
[1742302308913,42.64862438,123.5,123.45,280.72862438]
[1742302309118,8.0995,123.48,123.45,277.4731]
[1742302309313,8.0995,123.48,123.45,269.3721]
[1742302309314,37.1795,123.48,123.45,269.3721]
[1742302309512,29.08,123.48,123.45,269.3721]
[1742302309711,29.13482909,123.48,123.45,269.42876798]
[1742302310915,8.1001,123.47,123.45,269.42876798]
[1742302311105,29.13482909,123.48,123.45,269.42876798]
[1742302311306,29.13482909,123.48,123.45,277.52976798]
[1742302312016,37.23432909,123.48,123.45,277.52976798]
[1742302313627,29.13482909,123.48,123.46,8.1001]
[1742302313929,29.13482909,123.48,123.45,271.51236798]
[1742302314230,42.70345347,123.48,123.45,271.51236798]
[1742302315231,8.0997,123.47,123.45,271.51236798]
[1742302315532,42.70345347,123.48,123.45,271.51236798]
[1742302315722,50.80285347,123.48,123.45,279.61296798]
[1742302316129,37.23422909,123.48,123.45,279.61296798]
[1742302316624,29.13482909,123.48,123.46,8.1004]
[1742302316826,29.13482909,123.48,123.45,271.51236798]
[1742302317426,29.13482909,123.48,123.46,8.1004]
[1742302318332,37.23402909,123.48,123.46,8.1004]
[1742302319127,29.13482909,123.48,123.46,8.1004]
[1742302320438,37.23402909,123.48,123.46,8.1004]
[1742302321238,37.23402909,123.48,123.45,279.61316798]
[1742302321929,29.13482909,123.48,123.46,8.1002]
[1742302322830,37.23402909,123.48,123.46,8.1002]
[1742302323029,37.23402909,123.48,123.45,279.61306798]
[1742302323931,29.13482909,123.48,123.46,8.1003]
[1742302324535,29.13482909,123.48,123.47,8.0997]
[1742302325536,29.13482909,123.48,123.45,271.51236798]
[1742302326041,8.1001,123.47,123.45,279.61306798]
[1742302326640,8.1003,123.47,123.45,269.42876798]
[1742302326832,13.56862438,123.47,123.45,269.42876798]
[1742302327038,29.1,123.46,123.45,269.42876798]
[1742302327337,37.2004,123.46,123.45,269.42876798]
[1742302329339,37.2004,123.46,123.45,267.21666798]
[1742302329641,29.1,123.46,123.45,275.31766798]
[1742302331834,29.1,123.46,123.45,267.21666798]
[1742302332338,29.1,123.46,123.45,275.31766798]
[1742302332542,29.1,123.46,123.45,267.21666798]
[1742302333743,37.2004,123.46,123.45,267.21666798]
[1742302334846,29.1,123.46,123.45,275.31766798]
[1742302336141,37.2004,123.46,123.45,267.21666798]
[1742302336341,8.1004,123.46,123.45,267.21666798]
[1742302337646,37.2001,123.47,123.45,267.21666798]
[1742302337845,42.66862438,123.47,123.45,267.21666798]
[1742302338048,42.66862438,123.47,123.45,0.05666798]
[1742302338240,21.66902438,123.46,123.45,0.05666798]
[1742302338940,29.1,123.47,123.45,0.05666798]
[1742302339345,29.1,123.47,123.45,2.17436798]
[1742302339546,29.1,123.47,123.46,8.1004]
[1742302340942,25.7641,123.47,123.46,8.1004]
[1742302341149,44.90610372,123.51,123.46,13.56862438]
[1742302341449,44.90610372,123.51,123.47,13.56862438]
[1742302342447,44.90610372,123.51,123.45,31.2177]
[1742302342448,8.15063293,123.5,123.48,0.05572649]
[1742302343648,8.15063293,123.5,123.48,8.15462649]
[1742302343850,0.05253293,123.5,123.48,8.15462649]
[1742302344747,8.15033293,123.5,123.48,8.15462649]
[1742302346753,0.05253293,123.5,123.49,8.0984]
[1742302346948,0.05253293,123.5,123.48,0.05572649]
[1742302347252,0.05253293,123.5,123.48,13.62435087]
[1742302347950,0.05253293,123.5,123.49,8.0984]
[1742302349148,51.69041591,123.54,123.49,13.56862438]
[1742302349354,44.90610372,123.54,123.51,13.56862438]
[1742302349551,38.23670372,123.54,123.53,13.56862438]
[1742302349854,11.26335014,123.55,123.53,13.56862438]
[1742302350054,11.26335014,123.55,123.54,13.56862438]
[1742302350248,11.26335014,123.55,123.54,21.66372438]
[1742302350455,11.26335014,123.55,123.53,13.62744435]
[1742302352352,11.26335014,123.55,123.54,13.56862438]
[1742302352745,11.26335014,123.55,123.54,21.66372438]
[1742302352948,0.05589191,123.56,123.54,21.66372438]
[1742302353255,0.05589191,123.56,123.53,42.70744435]
[1742302353450,0.05589191,123.56,123.53,29.13881997]
[1742302353655,8.0948,123.55,123.53,29.13881997]
[1742302354958,8.0948,123.55,123.53,37.23451997]
[1742302355558,8.0948,123.55,123.53,50.80314435]
[1742302356157,8.15009191,123.56,123.53,50.80314435]
[1742302356858,8.15009191,123.56,123.54,8.0951]
[1742302358256,8.0946,123.55,123.53,42.70744435]
[1742302358462,0.05589191,123.56,123.53,0.05881997]
[1742302358960,8.0948,123.55,123.53,8.15451997]
[1742302359961,8.14999191,123.56,123.53,8.15451997]
[1742302360463,8.0946,123.55,123.53,8.15451997]
[1742302360862,13.62451629,123.56,123.53,0.05881997]
[1742302361058,29.08,123.55,123.53,0.05881997]
[1742302361762,8.0951,123.54,123.53,0.05881997]
[1742302362666,29.08,123.55,123.53,0.05881997]
[1742302363565,29.08,123.55,123.54,8.0951]
[1742302364767,29.08,123.55,123.53,13.62744435]
[1742302364768,0.05589191,123.56,123.55,8.0945]
[1742302367064,0.05589191,123.56,123.54,21.66342438]
[1742302367367,0.05589191,123.56,123.53,13.62744435]
[1742302367568,0.05589191,123.56,123.54,13.56862438]
[1742302367771,0.05589191,123.56,123.55,8.0945]
[1742302369068,0.05589191,123.56,123.55,21.66312438]
[1742302370560,0.05589191,123.56,123.55,50.72312438]
[1742302371273,9.191e-05,123.56,123.55,50.72312438]
[1742302371872,37.1506,123.61,123.59,8.0914]
[1742302373073,29.11172892,123.61,123.59,8.14919168]
[1742302373571,37.20242892,123.61,123.59,8.14919168]
[1742302373772,37.20242892,123.61,123.59,0.05779168]
[1742302375173,0.05172892,123.61,123.59,13.62641606]
[1742302376068,0.05172892,123.61,123.59,21.71791606]
[1742302376867,0.05172892,123.61,123.59,8.14929168]
[1742302377764,0.05172892,123.61,123.6,8.0912]
[1742302377961,35.99160729,123.68,123.6,13.56862438]
[1742302378162,8.0869,123.67,123.64,21.65692438]
[1742302378362,51.48298291,123.68,123.64,13.56862438]
[1742302378571,51.48298291,123.68,123.63,13.56862438]
[1742302378572,65.05160729,123.68,123.63,13.56862438]
[1742302379173,8.0872,123.67,123.64,8.1432329]
[1742302380574,8.0873,123.66,123.64,8.1432329]
[1742302382269,8.0873,123.66,123.64,0.0546329]
[1742302382473,8.0879,123.65,123.64,0.0546329]
[1742302382773,42.62862438,123.68,123.64,0.0546329]
[1742302383167,8.0876,123.66,123.64,0.0546329]
[1742302384975,8.0879,123.65,123.64,0.0546329]
[1742302385169,42.62862438,123.68,123.64,0.0546329]
[1742302385573,8.0878,123.66,123.64,0.0546329]
[1742302385973,8.0878,123.66,123.64,8.1432329]
[1742302386169,8.0878,123.66,123.64,0.0546329]
[1742302387175,8.0879,123.65,123.64,0.0546329]
[1742302387379,21.65652438,123.65,123.64,0.0546329]
[1742302388672,8.0879,123.65,123.64,0.0546329]
[1742302390576,37.1277,123.66,123.64,0.0546329]
[1742302391480,8.0879,123.65,123.64,0.0546329]
[1742302392078,29.04,123.66,123.64,0.0546329]
[1742302392272,37.1276,123.66,123.64,8.1432329]
[1742302392485,29.04,123.66,123.64,0.0546329]
[1742302392979,8.0863,123.68,123.65,8.0879]
[1742302393183,29.04,123.68,123.65,8.0879]
[1742302393672,8.0871,123.67,123.65,8.0879]
[1742302393873,42.60862438,123.68,123.64,267.0146329]
[1742302394285,8.0879,123.65,123.64,267.0146329]
[1742302396380,37.1277,123.66,123.64,267.0146329]
[1742302397385,8.0879,123.65,123.64,267.0146329]
[1742302398290,37.1277,123.66,123.64,275.1032329]
[1742302401187,8.0879,123.65,123.64,267.0146329]
[1742302403481,21.65652438,123.65,123.64,0.0546329]
[1742302413089,39.3428,123.66,123.64,0.0546329]
[1742302413292,31.2552,123.66,123.64,0.0546329]
[1742302413596,2.2152,123.66,123.64,0.0546329]
[1742302413791,39.3429,123.66,123.64,0.0546329]
[1742302413997,37.1277,123.66,123.64,0.0546329]
[1742302414196,37.1277,123.66,123.64,8.1429329]
[1742302414590,29.04,123.66,123.64,0.0546329]
[1742302414790,48.37492899,123.67,123.65,8.0876]
[1742302415401,11.24802899,123.67,123.64,0.0546329]
[1742302415603,40.28802899,123.67,123.64,0.0546329]
[1742302415905,8.0876,123.66,123.64,8.1431329]
[1742302416706,37.1276,123.66,123.64,8.1431329]
[1742302418800,29.04,123.66,123.65,8.0879]
[1742302419299,37.1273,123.66,123.64,8.1429329]
[1742302419806,29.04,123.66,123.64,0.0546329]
[1742302420008,29.04,123.66,123.65,8.0879]
[1742302420604,37.1273,123.66,123.64,8.1429329]
[1742302422112,37.107,123.67,123.65,8.0879]
[1742302422311,37.107,123.67,123.64,0.0546329]
[1742302423204,37.107,123.67,123.65,8.0879]
[1742302424412,8.0873,123.66,123.64,8.1429329]
[1742302428513,37.107,123.67,123.65,8.0879]
[1742302429614,8.0873,123.66,123.64,8.1429329]
[1742302435220,8.0873,123.66,123.65,8.0879]
[1742302435421,29.02,123.67,123.64,0.0546329]
[1742302435919,37.1071,123.67,123.65,8.0875]
[1742302437620,49.10493697,123.71,123.67,8.0866]
[1742302437621,8.0856,123.69,123.67,8.0866]
[1742302437820,29.02,123.69,123.66,13.56862438]
[1742302438020,29.02,123.69,123.67,0.05407654]
[1742302438221,8.0862,123.68,123.67,0.05407654]
[1742302438616,37.1058,123.69,123.67,8.14047654]
[1742302439124,8.0858,123.69,123.67,8.14047654]
[1742302439321,37.1058,123.69,123.67,8.14047654]
[1742302440222,8.0858,123.69,123.67,8.14047654]
[1742302440925,29.02,123.71,123.68,13.56862438]
[1742302441225,29.02,123.71,123.67,13.62270092]
[1742302441925,8.085,123.7,123.68,8.0857]
[1742302442127,42.58862438,123.71,123.67,0.05407654]
[1742302442327,13.56862438,123.7,123.67,0.05407654]
[1742302442722,8.0857,123.69,123.67,8.14047654]
[1742302442928,37.1057,123.69,123.67,8.14047654]
[1742302443118,37.1057,123.69,123.67,0.05407654]
[1742302444729,8.086,123.68,123.67,0.05407654]
[1742302451330,21.65462438,123.68,123.67,0.05407654]
[1742302451727,29.02,123.69,123.67,0.05407654]
[1742302451931,29.02,123.69,123.68,8.086]
[1742302455451,52.90103697,123.71,123.69,8.0853]
[1742302455847,8.0844,123.71,123.69,8.0853]
[1742302456044,29.02,123.72,123.68,13.56862438]
[1742302456257,29.02,123.72,123.69,13.56862438]
[1742302456955,29.02,123.72,123.71,8.084]
[1742302457556,29.02,123.72,123.7,8.13934211]
[1742302457860,37.1035,123.72,123.7,8.13934211]
[1742302458257,8.0835,123.72,123.7,8.13934211]
[1742302458454,81.91963697,123.73,123.7,8.13934211]
[1742302459051,8.083,123.73,123.7,8.13934211]
[1742302459252,37.103,123.73,123.7,8.13934211]